fUSD/lending_fUSD_20260107
["ID","MTS","AMOUNT","RATE_DAILY","PERIOD"]
[400723728,1767798640654,-166.24303816,0.0001658,2]
[400723729,1767798640664,-163.2920989,0.0001658,2]
[400723730,1767798640676,-500.0,0.0001658,2]
[400723731,1767798640687,-1658.02,0.000166,2]
[400723732,1767798640697,-506.85863405,0.000166,2]
[400723733,1767798640707,-500.0,0.00016621,2]
[400723734,1767798641005,-513.27916728,0.00016621,2]
[400723735,1767798641018,-524.2180077,0.00016621,2]
[400723736,1767798641029,-500.0,0.00016621,2]
[400723737,1767798641040,-258.58725296,0.00016621,2]
[400723738,1767798641050,-500.0,0.00016621,2]
[400723739,1767798641061,-500.0,0.00016627,2]
[400723740,1767798641071,-500.0,0.00016627,2]
[400723741,1767798641082,-500.0,0.00016627,2]
[400723742,1767798641093,-250.0,0.00016627,2]
[400723743,1767798641103,-500.0,0.00016627,2]
[400723744,1767798641113,-500.0,0.00016627,2]
[400723745,1767798641123,-250.0,0.00016627,2]
[400723746,1767798641134,-500.0,0.00016627,2]
[400723747,1767798641145,-500.0,0.00016627,2]
[400723748,1767798641155,-500.0,0.00016627,2]
[400723749,1767798641167,-250.0,0.00016627,2]
[400723750,1767798641177,-500.0,0.00016627,2]
[400723751,1767798641187,-250.0,0.00016627,2]
[400723752,1767798641197,-500.0,0.00016627,2]
[400723753,1767798641208,-500.0,0.00016627,2]
[400723754,1767798641219,-500.0,0.00016627,2]
[400723755,1767798641229,-500.0,0.00016627,2]
[400723756,1767798641240,-500.0,0.00016627,2]
[400723757,1767798641250,-574.12855637,0.00016627,2]
[400723758,1767798641261,-500.0,0.00016627,2]
[400723759,1767798641272,-250.0,0.00016627,2]
[400723760,1767798641283,-500.0,0.00016627,2]
[400723761,1767798641293,-250.0,0.00016627,2]
[400723762,1767798641304,-500.0,0.00016627,2]
[400723763,1767798641314,-250.0,0.00016627,2]
[400723764,1767798641324,-500.0,0.00016627,2]
[400723765,1767798641334,-250.0,0.00016627,2]
[400723766,1767798641344,-255.49772714,0.00016627,2]
[400723767,1767798641355,-250.0,0.00016627,2]
[400723768,1767798641365,-250.0,0.00016627,2]
[400723769,1767798641375,-250.0,0.00016627,2]
[400723770,1767798641385,-151.55763012,0.00016627,2]
[400723771,1767798641397,-743.29710594,0.00016627,2]
[400723772,1767798641412,-500.0,0.00016627,2]
[400723774,1767798641428,-500.0,0.00016627,2]
[400723776,1767798641441,-500.0,0.00016627,2]
[400723777,1767798641451,-500.0,0.00016627,2]
[400723778,1767798641462,-200.0,0.00016627,2]
[400723779,1767798641472,-2000.0,0.00016627,2]
[400723780,1767798641485,-500.0,0.00016627,2]
[400723781,1767798641495,-207.4,0.00016627,2]
[400723782,1767798641506,-2000.0,0.00016627,2]
[400723783,1767798641516,-215.0738,0.00016627,2]
[400723784,1767798641526,-2000.0,0.00016627,2]
[400723785,1767798641537,-223.0315306,0.00016627,2]
[400723786,1767798641547,-2000.0,0.00016627,2]
[400723787,1767798641558,-231.28369723,0.00016627,2]
[400723788,1767798641568,-2000.0,0.00016627,2]
[400723789,1767798641578,-239.84119403,0.00016627,2]
[400723790,1767798641589,-2000.0,0.00016627,2]
[400723791,1767798641599,-248.71531821,0.00016627,2]
[400723792,1767798641610,-2000.0,0.00016627,2]
[400723793,1767798641620,-257.91778498,0.00016627,2]
[400723794,1767798641630,-2000.0,0.00016627,2]
[400723795,1767798641641,-267.46074303,0.00016627,2]
[400723796,1767798641651,-2000.0,0.00016627,2]
[400723797,1767798641661,-277.35679052,0.00016627,2]
[400723798,1767798641673,-2000.0,0.00016627,2]
[400723799,1767798641683,-2000.0,0.00016627,2]
[400723800,1767798641693,-1047.0,0.00016695,2]
[400723801,1767798641703,-1047.0,0.00016743,2]
[400723802,1767798641714,-1047.0,0.00016792,2]
[400723803,1767798641725,-500.0,0.00016799,2]
[400723804,1767798641734,-500.0,0.00016799,2]
[400723805,1767798641744,-500.0,0.00016799,2]
[400723806,1767798641756,-500.0,0.00016799,2]
[400723807,1767798641766,-500.0,0.00016799,2]
[400723808,1767798641776,-18835.92816169,0.000168,2]
[400723809,1767798641787,-26148.09169673,0.000168,2]
[400723810,1767798641797,-2500.0,0.00016816,2]
[400723811,1767798641808,-193.0,0.00016816,2]
[400723812,1767798641818,-250.0,0.00016816,2]
[400723813,1767798641828,-250.0,0.00016816,2]
[400723814,1767798641839,-300.0,0.00016816,2]
[400723815,1767798641850,-600.0,0.00016816,2]
[400723816,1767798641860,-600.0,0.00016816,2]
[400723817,1767798641870,-600.0,0.00016816,2]
[400723818,1767798641881,-600.0,0.00016816,2]
[400723819,1767798641892,-320.97403321,0.00016816,2]
[400723820,1767798641902,-420.0,0.00016872,2]
[400723821,1767798641912,-420.0,0.00016872,2]
[400723822,1767798641923,-1658.02,0.00016874,2]
[400723823,1767798641933,-1047.0,0.00016887,2]
[400723824,1767798641945,-1047.0,0.00016904,2]
[400723825,1767798641955,-1100.0,0.00016922,2]
[400723826,1767798641966,-1680.0,0.00016958,2]
[400723827,1767798641976,-1047.0,0.00016959,2]
[400723828,1767798641987,-250.0,0.00016965,2]
[400723829,1767798641997,-405462.78,0.00016986,2]
[400723830,1767798642008,-190.0,0.00017,2]
[400723831,1767798642018,-250.0,0.00017,2]
[400723832,1767798642028,-780.0,0.0001702,2]
[400723833,1767798642038,-18835.92816169,0.00017075,2]
[400723834,1767798642048,-26148.09169673,0.00017075,2]
[400723835,1767798642058,-6725.0,0.00017075,2]
[400723836,1767798642068,-780.0,0.00017088,2]
[400723837,1767798642078,-1000.0,0.00017112,2]
[400723838,1767798642088,-780.0,0.00017113,2]
[400723839,1767798642099,-780.0,0.00017115,2]
[400723840,1767798642108,-1000.0,0.00017128,2]
[400723841,1767798642119,-502.16378022,0.00017128,2]
[400723842,1767798642129,-442.83023798,0.00017128,2]
[400723843,1767798642139,-1001.56852644,0.00017128,2]
[400723844,1767798642150,-1029.13192156,0.00017128,2]
[400723845,1767798642161,-1000.0,0.00017128,2]
[400723846,1767798642172,-1000.0,0.00017128,2]
[400723847,1767798642184,-1000.0,0.00017128,2]
[400723848,1767798642194,-556.0741427,0.00017128,2]
[400723849,1767798642204,-1000.0,0.00017128,2]
[400723850,1767798642214,-1009.96734995,0.00017128,2]
[400723851,1767798642224,-1000.0,0.00017128,2]
[400723852,1767798642234,-1000.0,0.00017128,2]
[400723853,1767798642244,-1000.0,0.00017128,2]
[400723854,1767798642254,-1000.0,0.00017128,2]
[400723855,1767798642264,-1000.0,0.00017128,2]
[400723856,1767798642275,-1000.0,0.00017128,2]
[400723857,1767798642285,-500.73448024,0.00017128,2]
[400723858,1767798642295,-1000.0,0.00017128,2]
[400723859,1767798642305,-519.44971303,0.00017128,2]
[400723860,1767798642315,-1658.02,0.00017148,2]
[400723861,1767798642326,-595.37131296,0.00017175,2]
[400723862,1767798642336,-780.0,0.000172,2]
[400723863,1767798642349,-250.0,0.0001726,3]
[400723864,1767798642360,-18835.92816169,0.0001735,2]
[400723865,1767798642370,-26148.09169673,0.0001735,2]
[400723866,1767798642380,-1658.02,0.00017422,2]
[400723867,1767798642390,-2000.0,0.000175,2]
[400723868,1767798642400,-1688.95959214,0.00017591,2]
[400723869,1767798642415,-500.0,0.00017594,2]
[400723870,1767798642425,-1000.0,0.000176,2]
[400723871,1767798642435,-500.0,0.00017624,2]
[400723872,1767798642444,-500.0,0.00017624,2]
[400723873,1767798642454,-18835.92816169,0.00017625,2]
[400723874,1767798642464,-26148.09169673,0.00017625,2]
[400723875,1767798642474,-8742.57458039,0.0001764,2]
[400723876,1767798642484,-515.65451742,0.00017676,2]
[400723877,1767798642494,-1500.0,0.00017676,2]
[400723878,1767798642503,-1537.00577444,0.00017676,2]
[400723879,1767798642513,-1176.13684725,0.00017676,2]
[400723880,1767798642523,-1500.0,0.00017676,2]
[400723881,1767798642532,-1500.0,0.00017676,2]
[400723882,1767798642542,-1500.0,0.00017676,2]
[400723883,1767798642552,-1500.0,0.00017676,2]
[400723884,1767798642562,-1500.0,0.00017676,2]
[400723885,1767798642572,-628.37348131,0.00017676,2]
[400723886,1767798642582,-500.77724877,0.00017676,2]
[400723887,1767798642592,-1524.05521125,0.00017676,2]
[400723888,1767798642603,-1658.02,0.00017696,2]
[400723889,1767798642613,-1000.0,0.00017709,2]
[400723890,1767798642623,-617.40005154,0.00017723,2]
[400723891,1767798642632,-1000.0,0.000178,2]
[400723892,1767798642642,-857.95,0.00017802,2]
[400723894,1767798642652,-250.0,0.00017808,3]
[400723895,1767798642662,-1100.0,0.00017812,2]
[400723896,1767798642672,-150.1,0.00017847,2]
[400723897,1767798642682,-150.1,0.00017847,2]
[400723898,1767798642694,-163.90468149,0.00017847,2]
[400723899,1767798642704,-1927.624,0.00017865,2]
[400723900,1767798642716,-164.838,0.00017865,2]
[400723901,1767798642726,-195.21604525,0.00017899,2]
[400723902,1767798642736,-500.0,0.00017899,2]
[400723903,1767798642746,-500.0,0.00017899,2]
[400723904,1767798642756,-500.0,0.00017899,2]
[400723905,1767798642767,-10000.0,0.000179,2]
[400723906,1767798642777,-1000.0,0.000179,2]
[400723907,1767798642786,-26148.09169673,0.000179,2]
[400723908,1767798642796,-18835.92816169,0.000179,2]
[400723909,1767798642806,-374.93987142,0.000179,2]
[400723910,1767798642816,-470.13918125,0.000179,2]
[400723911,1767798642826,-158.47985627,0.000179,2]
[400723912,1767798642835,-2866.87344808,0.000179,2]
[400723913,1767798642845,-1000.0,0.00017952,2]
[400723914,1767798642855,-1000.0,0.00017952,2]
[400723915,1767798642865,-630.21,0.00017952,2]
[400723916,1767798642874,-189.05,0.00017958,2]
[400723917,1767798642885,-500.0,0.00017964,2]
[400723918,1767798642895,-500.0,0.00017964,2]
[400723919,1767798642906,-500.0,0.00017964,2]
[400723920,1767798642917,-1658.02,0.0001797,2]
[400723921,1767798642927,-500.0,0.00017973,2]
[400723922,1767798642937,-322.49416926,0.00017973,2]
[400723923,1767798642947,-500.0,0.00017973,2]
[400723924,1767798642958,-503.18143071,0.00017973,2]
[400723925,1767798642969,-500.0,0.00017973,2]
[400723926,1767798642979,-500.0,0.00017982,2]
[400723927,1767798642989,-981.18924201,0.0001799,2]
[400723928,1767798643000,-981.18924201,0.0001799,2]
[400723929,1767798643009,-652.54230562,0.0001799,2]
[400723930,1767798643019,-539.43776376,0.0001799,2]
[400723931,1767798643029,-287.61899177,0.00017996,2]
[400723932,1767798643039,-151.0,0.00017997,2]
[400723933,1767798643048,-274.431,0.00017999,2]
[400723934,1767798643058,-500.0,0.00017999,2]
[400723935,1767798643069,-389.79829828,0.00017999,2]
[400723936,1767798643078,-300.0,0.00017999,2]
[400723937,1767798643089,-500.0,0.00017999,2]
[400723938,1767798643105,-461.49248906,0.00017999,2]
[400723939,1767798643115,-670.98213381,0.00017999,2]
[400723940,1767798643125,-500.0,0.00017999,2]
[400723941,1767798643134,-500.0,0.00017999,2]
[400723942,1767798643144,-500.0,0.00017999,2]
[400723943,1767798643154,-531.52006841,0.00017999,2]
[400723944,1767798643163,-500.0,0.00017999,2]
[400723945,1767798643174,-500.0,0.00017999,2]
[400723946,1767798643184,-500.0,0.00017999,2]
[400723947,1767798643194,-500.0,0.00017999,2]
[400723948,1767798643204,-500.0,0.00017999,2]
[400723949,1767798643213,-500.0,0.00017999,2]
[400723950,1767798643223,-500.0,0.00017999,2]
[400723951,1767798643232,-500.0,0.00017999,2]
[400723952,1767798643242,-357.35894904,0.00017999,2]
[400723953,1767798643251,-300.0,0.00017999,2]
[400723954,1767798643261,-300.0,0.00017999,2]
[400723955,1767798643270,-179.90932368,0.00017999,2]
[400723956,1767798643280,-666.0,0.00017999,2]
[400723957,1767798643289,-666.0,0.00017999,2]
[400723958,1767798643298,-300.0,0.00017999,2]
[400723959,1767798643307,-1322823.40746099,0.00018,2]
[400723960,1767798643873,-360683.40081699,0.00018,2]
[400723961,1767798643883,-554417.98322994,0.00018,2]
[400723962,1767798643893,-3603.13674707,0.00018,2]
[400723963,1767798643903,-4848510.17616585,0.00018,2]
[400723964,1767798644386,-2150.32531677,0.00018,2]
[400723965,1767798644514,1100.0,0.00015025,2]
[400723966,1767798645386,-196.83407806,0.00016432,2]
[400723967,1767798645396,-170.10592194,0.00018,2]
[400723968,1767798645450,-919.20311721,0.00018,2]
[400723969,1767798645462,-516.09855251,0.00018,2]
[400723970,1767798645473,-353.91693895,0.00018,2]
[400724008,1767798648131,1325.74,0.000143,2]
[400724009,1767798648580,1325.74,0.000143,2]
[400724010,1767798648878,-5429.86323659,0.00018,2]
[400724011,1767798648914,-414.32288535,0.00018,2]
[400724012,1767798648932,-325.0,0.00018,2]
[400724013,1767798648946,-1444.61513517,0.00018,2]
[400724014,1767798648977,-1104.89183922,0.00018,2]
[400724015,1767798648993,-8057.13590514,0.00018,2]
[400724016,1767798649013,-23999.99998012,0.00018,2]
[400724017,1767798649025,-11999.07050161,0.00018,2]
[400724018,1767798649079,1325.74,0.000143,2]
[400724019,1767798649374,488.63,0.000143,2]
[400724020,1767798649569,-472.763946,0.00018,2]
[400724021,1767798649585,-5941.72692483,0.00018,2]
[400724589,1767798718493,-891.82153501,0.00015424,2]
[400724590,1767798718527,-500.0,0.00015463,2]
[400724591,1767798718561,-500.0,0.00015463,2]
[400724592,1767798718594,-500.0,0.00015463,2]
[400724593,1767798718634,-500.0,0.00015463,2]
[400724594,1767798731070,36327.49620519,0.000328,120]
[400724596,1767798747641,500.0,0.00015187,2]
[400724597,1767798756029,500.0,0.00015463,2]
[400724598,1767798769541,3216.36692998,0.00015325,2]
[400724599,1767798769573,10000.01,0.00015325,2]
[400724600,1767798769606,10000.01,0.00015325,2]
[400724601,1767798769637,10000.01,0.00015325,2]
[400724602,1767798836195,1117.45821686,0.00015324,5]
[400724603,1767798841871,300.0,0.00015324,2]
[400724604,1767798859323,500.0,0.00015225,2]
[400724605,1767798859531,500.0,0.00015225,2]
[400724606,1767798860530,500.0,0.00015225,2]
[400724607,1767798860973,500.0,0.00015225,2]
[400724608,1767798861107,500.0,0.00015225,2]
[400724609,1767798861460,500.0,0.00015225,2]
[400724610,1767798861857,500.0,0.00015225,2]
[400724611,1767798862263,500.0,0.00015225,2]
[400724612,1767798862965,500.0,0.00015225,2]
[400724613,1767798863190,500.0,0.00015225,2]
[400724614,1767798863585,500.0,0.00015225,2]
[400724615,1767798864009,313.34622116,0.00015225,2]
[400724616,1767798872765,307.65713063,0.00015324,2]
[400724617,1767798872803,500.0,0.00015324,2]
[400724618,1767798873264,175.5693549,0.00015324,2]
[400724619,1767798875460,500.0,0.00015324,2]
[400724620,1767798875547,500.0,0.00015324,2]
[400724621,1767798875614,500.0,0.00015324,2]
[400724622,1767798875697,500.0,0.00015324,2]
[400724623,1767798875742,200.0,0.00015324,2]
[400724624,1767798876024,500.0,0.00015324,2]
[400724625,1767798904012,184.0,0.00031783,120]
[400724639,1767798988560,200.0,0.000328,120]
[400724650,1767799027089,-243.55090306,0.00015235,2]
[400724651,1767799030393,-150.0,0.00015056,2]
[400724652,1767799030418,-13.13159322,0.00015235,2]
[400724653,1767799030443,-36.84282979,0.00015236,2]
[400724654,1767799032797,-300.02557699,0.00015236,2]
[400724655,1767799035805,-300.00000017,0.00015236,2]
[400724656,1767799100171,1007.75532393,0.00032876,120]
[400724657,1767799117141,-240.47638426,0.00015236,2]
[400724659,1767799138796,402.12022584,0.00032876,120]
[400724660,1767799166360,1818.24,0.00014992,2]
[400724661,1767799176912,1000.0,0.00014944,2]
[400724663,1767799192365,1000.0,0.000145,2]
[400724664,1767799200296,1000.0,0.00014,2]
[400724665,1767799212958,659.3,0.00014802,2]
[400724666,1767799213200,982.69,0.00014802,2]
[400724668,1767799221465,1000.0,0.000135,2]
[400724670,1767799251938,-208.2668177,0.00015006,2]
[400724671,1767799371961,-151.29621885,0.00015006,2]
[400724672,1767799402109,-318.14903129,0.00015006,2]
[400724673,1767799406021,-300.0,0.00015006,2]
[400724674,1767799408914,-22.28793216,0.00015006,2]
[400724675,1767799408940,-275.0,0.00015006,2]
[400724676,1767799408964,-2.71206784,0.00015063,2]
[400724677,1767799411595,-192.28793216,0.00015063,2]
[400724678,1767799411625,-302.52168594,0.00015063,2]
[400724679,1767799411650,-39.3500945,0.0001512,2]
[400724680,1767799413779,-210.6499055,0.0001512,2]
[400724681,1767799413805,-34.83190358,0.00015157,2]
[400724682,1767799414617,1069.44525,0.00014931,2]
[400724683,1767799415488,-160.16809642,0.00015157,2]
[400724684,1767799415514,-33.68067328,0.00015189,2]
[400724685,1767799417179,-218.46056662,0.00015189,2]
[400724686,1767799417208,-188.38448892,0.00015234,2]
[400724687,1767799417820,1948.83,0.0001478,2]
[400724688,1767799420385,-296.97286097,0.00015234,2]
[400724689,1767799421522,-164.03,0.00015234,2]
[400724690,1767799423809,-198.37055173,0.00015234,2]
[400724691,1767799425717,-294.78439273,0.00015234,2]
[400724692,1767799427615,-57.45770565,0.00015234,2]
[400724693,1767799427639,-110.09915804,0.00015234,2]
[400724694,1767799430021,150.0,0.00014908,2]
[400724695,1767799453305,-500.0,0.00015235,2]
[400724696,1767799453342,-500.0,0.00015235,2]
[400724697,1767799453380,-300.0,0.00015235,2]
[400724698,1767799453413,-250.0,0.00015235,2]
[400724699,1767799453446,-3382.53140333,0.00015235,2]
[400724701,1767799454264,-134.94719334,0.00015235,2]
[400724702,1767799454297,-300.0,0.00015235,2]
[400724703,1767799454329,-1821.093,0.00015235,2]
[400724704,1767799454361,-165.971,0.00015235,2]
[400724705,1767799457435,-4028.24516999,0.00015236,2]
[400724706,1767799457621,-10000.01,0.00015236,2]
[400724707,1767799457811,-10000.01,0.00015236,2]
[400724708,1767799476549,-10000.01,0.00015236,2]
[400724709,1767799478571,-10000.01,0.00015236,2]
[400724710,1767799485549,-10000.01,0.00015236,2]
[400724711,1767799486248,-10000.01,0.00015236,2]
[400724712,1767799507889,-200.0,0.00015081,2]
[400724713,1767799507924,-2502.050016,0.00015148,2]
[400724714,1767799507960,-2254.88063326,0.00015225,2]
[400724715,1767799508286,-86.14870148,0.00015225,2]
[400724716,1767799508323,-300.0,0.00015235,2]
[400724717,1767799508360,-1200.0,0.00015235,2]
[400724718,1767799509420,-86.14870148,0.00015236,2]
[400724719,1767799509468,-6827.71259704,0.00015236,2]
[400724720,1767799509665,-10000.01,0.00015236,2]
[400724721,1767799518972,-10000.01,0.00015236,2]
[400724722,1767799519023,-6582.90874028,0.00015236,2]
[400724723,1767799527552,1026.43649281,0.000108,2]
[400724724,1767799528537,-1010.38770677,0.00015225,2]
[400724725,1767799555583,3165.73073703,0.00015225,2]
[400724726,1767799561316,4813.50384943,8e-05,2]
[400724727,1767799561344,10000.01,8e-05,2]
[400724728,1767799561372,8733.85212993,8e-05,2]
[400724729,1767799564923,935.29717806,0.00011,2]
[400724730,1767799588226,330.86069201,0.00015,2]
[400724731,1767799588254,1714.15129326,0.00015,2]
[400724732,1767799613359,221.84214768,0.00015324,5]
[400724733,1767799636067,3784.05513473,0.0001305,2]
[400724734,1767799636426,259.44248152,0.000101,2]
[400724735,1767799654270,1227.64,0.00014983,2]
[400724736,1767799662670,1287.14,0.00014983,2]
[400724737,1767799667395,1727.58109049,0.00014983,2]
[400724738,1767799667420,2485.60890951,0.00014983,2]
[400724741,1767799688229,7514.40109049,0.0001439,2]
[400724742,1767799688256,1488.82671057,0.0001439,2]
[400724745,1767799700428,4502.29079711,0.00015,2]
[400724747,1767799709834,1307.39,0.0001507,2]
[400724748,1767799713567,2701.50249232,0.00014999,2]
[400724749,1767799713598,2313.41750768,0.00014999,2]
[400724756,1767799732391,-212.8727741,0.00015285,2]
[400724758,1767799734620,-87.1272259,0.00015285,2]
[400724759,1767799734643,-166.66,0.00015286,2]
[400724760,1767799734665,-51.97246794,0.00015286,2]
[400724761,1767799736868,-300.0,0.00015286,2]
[400724762,1767799748565,500.0,0.0001523,2]
[400724844,1767799772796,999.0,0.00014944,3]
[400724845,1767799772959,164.68893214,0.00014,10]
[400724848,1767799777631,1497.59,0.00014944,2]
[400724849,1767799797741,-4760.86246794,0.00015286,2]
[400724850,1767799799932,-478.28506412,0.00015286,2]
[400724851,1767799799966,-1517.64,0.000153,2]
[400724852,1767799800001,-151.0,0.00015316,2]
[400724853,1767799800038,-151.0,0.00015316,2]
[400724854,1767799800072,-151.0,0.00015316,2]
[400724855,1767799800108,-151.0,0.00015316,2]
[400724856,1767799800144,-151.0,0.00015316,2]
[400724857,1767799800181,-151.0,0.00015316,2]
[400724858,1767799800218,-151.0,0.00015316,2]
[400724859,1767799800256,-151.0,0.00015316,2]
[400724860,1767799800294,-151.0,0.00015316,2]
[400724861,1767799800331,-151.0,0.00015316,2]
[400724862,1767799800368,-151.0,0.00015316,2]
[400724863,1767799800405,-240.62620329,0.00015323,2]
[400724864,1767799800441,-500.0,0.00015324,2]
[400724865,1767799800477,-154.13322349,0.00015324,2]
[400724866,1767799800510,-215.35999144,0.00015324,2]
[400724867,1767799802821,-300.0,0.00015315,2]
[400724868,1767799802857,-500.0,0.00015324,2]
[400724869,1767799802892,-500.0,0.00015324,2]
[400724870,1767799802928,-500.0,0.00015324,2]
[400724871,1767799802963,-500.0,0.00015324,2]
[400724872,1767799805738,884.08924338,0.00015225,2]
[400724873,1767799806183,4804.91324894,0.00015224,2]
[400724874,1767799806221,10000.01,0.00015224,2]
[400724875,1767799806258,10000.01,0.00015224,2]
[400724876,1767799806293,10000.01,0.00015224,2]
[400724877,1767799806331,10000.01,0.00015224,2]
[400724878,1767799806369,10000.01,0.00015224,2]
[400724879,1767799806407,10000.01,0.00015224,2]
[400724880,1767799806445,10000.01,0.00015224,2]
[400724881,1767799806481,10000.01,0.00015224,2]
[400724893,1767799832333,-2337.30924,0.00015224,2]
[400724894,1767799832344,-7307.74,0.00015224,2]
[400724895,1767799832456,-8364.99151298,0.00015224,2]
[400724896,1767799832468,-996.68687627,0.00015224,2]
[400724897,1767799832612,-217756.33005952,0.00015224,2]
[400724898,1767799832623,-24027.28681813,0.00015224,2]
[400724899,1767799832635,-115010.30995848,0.00015224,2]
[400724900,1767799832646,-59193.94688125,0.00015224,2]
[400724901,1767799832705,-18498.36200261,0.00015224,2]
[400724902,1767799832941,-10000.01,0.00015224,2]
[400724903,1767799833495,-10000.01,0.00015224,2]
[400724960,1767799839446,-441702.02340182,0.00015224,2]
[400724961,1767799839456,-14422.3254508,0.00015324,2]
[400724962,1767799839465,-500.0,0.00015324,2]
[400724963,1767799839474,-500.0,0.00015324,2]
[400724964,1767799839483,-500.0,0.00015324,2]
[400724965,1767799839493,-500.0,0.00015324,2]
[400724966,1767799839503,-500.0,0.00015324,2]
[400724967,1767799839513,-500.0,0.00015324,2]
[400724968,1767799839522,-461.49248906,0.00015324,2]
[400724969,1767799839531,-277.0,0.00015324,2]
[400724970,1767799839541,-4539.04,0.00015325,2]
[400724971,1767799839551,-20121.92,0.00015325,2]
[400724972,1767799839560,-9999.99,0.00015325,2]
[400724973,1767799839569,-299.99,0.00015325,2]
[400724974,1767799839579,-150.99,0.00015325,2]
[400724975,1767799839588,-999.99,0.00015325,2]
[400724976,1767799839598,-43510.89,0.00015413,2]
[400724977,1767799839607,-50548.89218177,0.00015438,2]
[400724978,1767799839617,-500.0,0.00015463,2]
[400724979,1767799839626,-500.0,0.00015463,2]
[400724980,1767799839635,-492.29410519,0.00015463,2]
[400724981,1767799839644,-3165.73073697,0.00015525,2]
[400724982,1767799839654,-11370.35,0.00015536,2]
[400724983,1767799839663,-166.66,0.00015601,2]
[400724984,1767799839674,-884.08924336,0.00015607,2]
[400724985,1767799839685,-1287.14,0.00015732,2]
[400724986,1767799839696,-3165.73073697,0.00015825,2]
[400724987,1767799839706,-1691.66833263,0.000159,2]
[400724988,1767799839715,-1691.66833263,0.000159,2]
[400724989,1767799839724,-1691.66833263,0.000159,2]
[400724990,1767799839734,-166.66,0.00015917,2]
[400724991,1767799839743,-166.66,0.00015929,2]
[400724992,1767799839752,-884.08924336,0.00015989,2]
[400724993,1767799839763,-654.12616134,0.0001599,2]
[400724994,1767799839775,-95197.55965865,0.00016,2]
[400724995,1767799839784,-50257.7914735,0.00016,4]
[400724996,1767799839794,-7630.47946513,0.00016117,2]
[400724997,1767799839803,-3165.73073697,0.00016125,2]
[400724998,1767799839814,-866.23975566,0.00016158,2]
[400724999,1767799839823,-3203.46,0.00016169,2]
[400725000,1767799839832,-21682.10123924,0.000162,5]
[400725001,1767799839841,-2132.39145627,0.00016215,2]
[400725002,1767799839851,-1562.21,0.00016248,2]
[400725003,1767799839862,-166.66,0.00016258,2]
[400725004,1767799839872,-262.5933356,0.00016288,2]
[400725005,1767799839882,-128449.24557458,0.000163,2]
[400725006,1767799839892,-574.12855637,0.00016314,2]
[400725007,1767799839903,-349.88294774,0.00016314,2]
[400725008,1767799839912,-200.0,0.00016314,2]
[400725009,1767799839922,-1500.0,0.00016314,2]
[400725010,1767799839931,-207.4,0.00016314,2]
[400725011,1767799839941,-1500.0,0.00016314,2]
[400725012,1767799839951,-215.0738,0.00016314,2]
[400725013,1767799839960,-1500.0,0.00016314,2]
[400725015,1767799839969,-223.0315306,0.00016314,2]
[400725016,1767799839978,-1457.13206838,0.00016314,2]
[400725017,1767799839988,-231.28369723,0.00016314,2]
[400725018,1767799839998,-239.84119403,0.00016314,2]
[400725019,1767799840008,-248.71531821,0.00016314,2]
[400725020,1767799840017,-257.91778498,0.00016314,2]
[400725021,1767799840026,-267.46074303,0.00016314,2]
[400725022,1767799840036,-277.35679052,0.00016314,2]
[400725023,1767799840045,-500.0,0.00016314,2]
[400725024,1767799840054,-500.0,0.00016314,2]
[400725025,1767799840063,-327.23086226,0.00016314,2]
[400725026,1767799840072,-829.02,0.00016314,2]